Departmental family,Entity,Date Paid,Expense type,Expense Area,Supplier,Transaction Number,Amount,Description,Supplier Type,Expenditure Type
UK Statistics Authority,Office for National Statistics,03-Sep-18,Incentive Payments,"Public, Population and Policy  - Operations",Park Retail Ltd,101349,"8,335.38", Social Surveys Incentive Vouchers,Large,Programme
UK Statistics Authority,Office for National Statistics,03-Sep-18,Incentive Payments,"Public, Population and Policy  - Operations",Park Retail Ltd,101349,"36,804.89", Social Surveys Incentive Vouchers,Large,Programme
UK Statistics Authority,Office for National Statistics,03-Sep-18,Incentive Payments,"Public, Population and Policy  - Operations",Park Retail Ltd,101349,"4,928.86", Social Surveys Incentive Vouchers,Large,Programme
UK Statistics Authority,Office for National Statistics,03-Sep-18,Incentive Payments,"Public, Population and Policy  - Operations",Park Retail Ltd,101349,"4,274.81", Social Surveys Incentive Vouchers,Large,Programme
UK Statistics Authority,Office for National Statistics,03-Sep-18,Incentive Payments,"Public, Population and Policy  - Operations",Park Retail Ltd,101349,"10,468.43", Social Surveys Incentive Vouchers,Large,Programme
UK Statistics Authority,Office for National Statistics,03-Sep-18,Surveys,National Accounts and Economic Statistics,University of Durham,101353,"173,235.60", Statistical Services,Large,Programme
UK Statistics Authority,Office for National Statistics,03-Sep-18,Telecommunications,Digital Services and Technology,BT Global Services,101354,"22,632.00", Information Management Services,Large,Programme
UK Statistics Authority,Office for National Statistics,03-Sep-18,,"Public, Population and Policy  - Operations",BT Global Services,101354,"9,523.44", Information Management Services,Large,Programme
UK Statistics Authority,Office for National Statistics,03-Sep-18,IT Contractual Services,Digital Services and Technology,QA Ltd,101362,"54,180.00", Information Management Services,Large,Programme
UK Statistics Authority,Office for National Statistics,03-Sep-18,Contractors,"Public, Population and Policy  - Transformation",Certeco Ltd,101371,"34,320.00", Information Management services,Large,Programme
UK Statistics Authority,Office for National Statistics,03-Sep-18,IT Contractual Services,Digital Services and Technology,Cloudwick Technologies UK,101372,"3,736.83", Information Management Services,SME,Programme
UK Statistics Authority,Office for National Statistics,03-Sep-18,IT Contractual Services,Digital Services and Technology,Cloudwick Technologies UK,101372,"35,603.96", Information Management Services,SME,Programme
UK Statistics Authority,Office for National Statistics,03-Sep-18,Surveys,National Accounts and Economic Statistics,Kantar Public,101375,"1,710.00", Statistical Services,SME,Programme
UK Statistics Authority,Office for National Statistics,03-Sep-18,Surveys,National Accounts and Economic Statistics,Kantar Public,101375,"182,328.90", Statistical Services,SME,Programme
UK Statistics Authority,Office for National Statistics,04-Sep-18,Telecommunications,Digital Services and Technology,CenturyLink Communications UK Ltd,101561,"46,511.20", Information Management Services,Large,Programme
UK Statistics Authority,Office for National Statistics,05-Sep-18,IT Contractual Services,Digital Services and Technology,Concept Information Technology Ltd T/A Concept Resourcing,101979,"25,770.00", Information Management Services,Large,Programme
UK Statistics Authority,Office for National Statistics,05-Sep-18,Travel and Subsistence,"Finance, Planning and Performance",Corporate Travel Management ,101980,"79,353.77", Travel and Accommodation Booking Service ,SME,Programme
UK Statistics Authority,Office for National Statistics,06-Sep-18,ICT Outsourcing & Maintenance/Support,Digital Services and Technology,Crown Hosting Data Centres Limited,101986,"42,474.02", Cloud Services,SME,Programme
UK Statistics Authority,Office for National Statistics,06-Sep-18,ICT Outsourcing & Maintenance/Support,Digital Services and Technology,Crown Hosting Data Centres Limited,101986,"30,893.75", Cloud Services,SME,Programme
UK Statistics Authority,Office for National Statistics,07-Sep-18,Childcare Services,"Finance, Planning and Performance",Computershare Voucher Services,102009,"42,863.89", Childcare Vouchers ,Large,Programme
UK Statistics Authority,Office for National Statistics,07-Sep-18,ICT Outsourcing & Maintenance/Support,"Public, Population and Policy  - Operations",Totalmobile Ltd,102010,"51,840.00", Field Management Licenses,SME,Programme
UK Statistics Authority,Office for National Statistics,07-Sep-18,ICT Outsourcing & Maintenance/Support,"Public, Population and Policy  - Operations",Totalmobile Ltd,102010,"2,916.00", Field Management Licenses,SME,Programme
UK Statistics Authority,Office for National Statistics,07-Sep-18,ICT Outsourcing & Maintenance/Support,"Public, Population and Policy  - Transformation",Totalmobile Ltd,102010,"24,000.00", Field Management Licenses,SME,Programme
UK Statistics Authority,Office for National Statistics,10-Sep-18,Public Policy Consultation,"Public, Population and Policy  - Transformation",Kantar Public,102291,"54,889.20", Statistical Services,SME,Programme
UK Statistics Authority,Office for National Statistics,11-Sep-18,Surveys,Public Policy Analysis,Kantar Public,102463,"435,744.92", Statistical Services,SME,Programme
UK Statistics Authority,Office for National Statistics,12-Sep-18,Incentive Payments,"Public, Population and Policy  - Operations",Park Retail Ltd,102889,"2,913.39", Social Surveys Incentive Vouchers,Large,Programme
UK Statistics Authority,Office for National Statistics,12-Sep-18,Incentive Payments,"Public, Population and Policy  - Operations",Park Retail Ltd,102889,"15,686.31", Social Surveys Incentive Vouchers,Large,Programme
UK Statistics Authority,Office for National Statistics,12-Sep-18,Incentive Payments,"Public, Population and Policy  - Operations",Park Retail Ltd,102889,"1,811.55", Social Surveys Incentive Vouchers,Large,Programme
UK Statistics Authority,Office for National Statistics,12-Sep-18,Incentive Payments,"Public, Population and Policy  - Operations",Park Retail Ltd,102889,"1,690.04", Social Surveys Incentive Vouchers,Large,Programme
UK Statistics Authority,Office for National Statistics,12-Sep-18,Incentive Payments,"Public, Population and Policy  - Operations",Park Retail Ltd,102889,"2,010.37", Social Surveys Incentive Vouchers,Large,Programme
UK Statistics Authority,Office for National Statistics,12-Sep-18,Performance Related Payments,Office for National Statistics Corporate Funds,Park Retail Ltd,102889,"9,897.50", Social Surveys Incentive Vouchers,Large,Programme
UK Statistics Authority,Office for National Statistics,12-Sep-18,Travel and Subsistence,"Finance, Planning and Performance",Corporate Travel Management ,102895,"63,858.38", Travel and Accommodation Booking Service ,SME,Programme
UK Statistics Authority,Office for National Statistics,12-Sep-18,Procurement Cards,"Finance, Planning and Performance",Royal Bank of Scotland,102904,"48,766.43", Multiple Procurement Card Purchases  ,Large,Programme
UK Statistics Authority,Office for National Statistics,12-Sep-18,Stationery,"Finance, Planning and Performance",Royal Bank of Scotland,102904,"8,936.84", Multiple Procurement Card Stationery Purchases  ,Large,Programme
UK Statistics Authority,Office for National Statistics,13-Sep-18,Advertising and Marketing,Policy and Communication,Four Communications Group Limited,102910,"42,139.20", Information Management Services,SME,Programme
UK Statistics Authority,Office for National Statistics,13-Sep-18,IT Contractual Services,Digital Services and Technology,Empiric Solutions Limited,102913,"30,420.00", Information Management Services,Large,Programme
UK Statistics Authority,Office for National Statistics,14-Sep-18,Facilities Management Contract Payments,"Finance, Planning and Performance",Vinci Construction UK Limited,103242,"65,997.55", Facility Management Services,Large,Programme
UK Statistics Authority,Office for National Statistics,14-Sep-18,Contractors,Digital Services and Technology,Parity Resources Limited,103251,"4,229.28", Information Management Services,Large,Programme
UK Statistics Authority,Office for National Statistics,14-Sep-18,Contractors,Digital Services and Technology,Parity Resources Limited,103251,"10,367.28", Information Management Services,Large,Programme
UK Statistics Authority,Office for National Statistics,14-Sep-18,Contractors,Economic Statistics - Transformation,Parity Resources Limited,103251,"12,047.04", Information Management Services,Large,Programme
UK Statistics Authority,Office for National Statistics,14-Sep-18,Contractors,People and Business Services,Parity Resources Limited,103251,"3,524.40", Information Management Services,Large,Programme
UK Statistics Authority,Office for National Statistics,14-Sep-18,Contractors,"Public, Population and Policy  - Transformation",Parity Resources Limited,103251,"10,620.00", Information Management Services,Large,Programme
UK Statistics Authority,Office for National Statistics,14-Sep-18,Contractors,"Public, Population and Policy  - Transformation",Parity Resources Limited,103251,"7,625.52", Information Management Services,Large,Programme
UK Statistics Authority,Office for National Statistics,14-Sep-18,Contractors,"Public, Population and Policy  - Transformation",Parity Resources Limited,103251,"18,807.48", Information Management Services,Large,Programme
UK Statistics Authority,Office for National Statistics,14-Sep-18,Contractors,"Public, Population and Policy  - Transformation",Parity Resources Limited,103251,"2,435.04", Information Management Services,Large,Programme
UK Statistics Authority,Office for National Statistics,14-Sep-18,Contractors,"Public, Population and Policy  - Transformation",Parity Resources Limited,103251,"12,175.20", Information Management Services,Large,Programme
UK Statistics Authority,Office for National Statistics,14-Sep-18,ICT Outsourcing & Maintenance/Support,"Methods, Data and Research",Parity Resources Limited,103251,"16,212.24", Information Management Services,Large,Programme
UK Statistics Authority,Office for National Statistics,14-Sep-18,IT Contractual Services,Digital Services and Technology,Parity Resources Limited,103251,"19,832.76", Information Management Services,Large,Programme
UK Statistics Authority,Office for National Statistics,14-Sep-18,Short-Term Contract and Agency Staff,Digital Services and Technology,Parity Resources Limited,103251,"19,480.32", Information Management Services,Large,Programme
UK Statistics Authority,Office for National Statistics,14-Sep-18,Short-Term Contract and Agency Staff,"Methods, Data and Research",Parity Resources Limited,103251,"3,672.98", Information Management Services,Large,Programme
UK Statistics Authority,Office for National Statistics,14-Sep-18,Short-Term Contract and Agency Staff,Policy and Communication,Parity Resources Limited,103251,31.92, Information Management Services,Large,Programme
UK Statistics Authority,Office for National Statistics,14-Sep-18,Short-Term Contract and Agency Staff,"Public, Population and Policy  - Operations",Parity Resources Limited,103251,"1,375.49", Information Management Services,Large,Programme
UK Statistics Authority,Office for National Statistics,14-Sep-18,Short-Term Contract and Agency Staff,"Public, Population and Policy  - Operations",Parity Resources Limited,103251,"10,937.04", Information Management Services,Large,Programme
UK Statistics Authority,Office for National Statistics,14-Sep-18,Short-Term Contract and Agency Staff,"Public, Population and Policy  - Operations",Parity Resources Limited,103251,57.31, Information Management Services,Large,Programme
UK Statistics Authority,Office for National Statistics,17-Sep-18,Capitalised Contractors,Digital Services and Technology,E Synergy Solutions,103583,"14,112.00", Information Management Services ,SME,Programme
UK Statistics Authority,Office for National Statistics,17-Sep-18,Contractors,Digital Services and Technology,E Synergy Solutions,103583,"7,200.00", Information Management Services ,SME,Programme
UK Statistics Authority,Office for National Statistics,17-Sep-18,ICT Outsourcing & Maintenance/Support,Digital Services and Technology,E Synergy Solutions,103583,"8,820.00", Information Management Services ,SME,Programme
UK Statistics Authority,Office for National Statistics,17-Sep-18,IT Contractual Services,Digital Services and Technology,E Synergy Solutions,103583,"16,368.00", Information Management Services ,SME,Programme
UK Statistics Authority,Office for National Statistics,17-Sep-18,IT Contractual Services,Digital Services and Technology,E Synergy Solutions,103583,"12,300.00", Information Management Services ,SME,Programme
UK Statistics Authority,Office for National Statistics,17-Sep-18,IT Contractual Services,Digital Services and Technology,E Synergy Solutions,103583,"127,311.00", Information Management Services ,SME,Programme
UK Statistics Authority,Office for National Statistics,17-Sep-18,IT Contractual Services,Digital Services and Technology,E Synergy Solutions,103583,"7,200.00", Information Management Services ,SME,Programme
UK Statistics Authority,Office for National Statistics,17-Sep-18,IT Contractual Services,Digital Services and Technology,E Synergy Solutions,103583,"33,456.00", Information Management Services ,SME,Programme
UK Statistics Authority,Office for National Statistics,17-Sep-18,IT Contractual Services,Digital Services and Technology,E Synergy Solutions,103583,"12,960.00", Information Management Services ,SME,Programme
UK Statistics Authority,Office for National Statistics,17-Sep-18,Major Works Over 25K,People and Business Services,Paramount Office Interiors Ltd,103588,"32,986.37", Major Works Titchfield ,SME,Programme
UK Statistics Authority,Office for National Statistics,18-Sep-18,Surveys,National Accounts and Economic Statistics,IFF Research,103597,"103,422.00", Statistical Services,Large,Programme
UK Statistics Authority,Office for National Statistics,18-Sep-18,Public Service Management Consultancy,Public Policy Analysis,2020 Delivery Limited,103599,"25,684.90", Management Development Programme ,SME,Programme
UK Statistics Authority,Office for National Statistics,18-Sep-18,IT Contractual Services,Digital Services and Technology,E Synergy Solutions,103600,"19,350.00", Information Management Services ,SME,Programme
UK Statistics Authority,Office for National Statistics,18-Sep-18,IT Contractual Services,Digital Services and Technology,E Synergy Solutions,103600,"38,043.00", Information Management Services ,SME,Programme
UK Statistics Authority,Office for National Statistics,18-Sep-18,IT Contractual Services,Digital Services and Technology,E Synergy Solutions,103600,"18,480.00", Information Management Services ,SME,Programme
UK Statistics Authority,Office for National Statistics,18-Sep-18,Telecommunications,Digital Services and Technology,BT Global Services,103603,"49,105.91", Information Management Services,Large,Programme
UK Statistics Authority,Office for National Statistics,18-Sep-18,Postage,"Public, Population and Policy  - Operations",UK Mail,103604,"37,532.75", Outgoing Post,Large,Programme
UK Statistics Authority,Office for National Statistics,18-Sep-18,Major Works Over 25K,People and Business Services,Central Roofing Ltd,103605,"70,156.39", Major works Newport,SME,Programme
UK Statistics Authority,Office for National Statistics,18-Sep-18,IT Management and Change,Digital Services and Technology,Centerprise International Ltd,103606,"11,244.68", Information Management Services,Large,Programme
UK Statistics Authority,Office for National Statistics,18-Sep-18,IT Purchases > 2K,Digital Services and Technology,Centerprise International Ltd,103606,"949,451.46", Information Management Services,Large,Programme
UK Statistics Authority,Office for National Statistics,18-Sep-18,Contractors,"Public, Population and Policy  - Transformation",Certeco Ltd,103611,"37,440.00", Information Management services,Large,Programme
UK Statistics Authority,Office for National Statistics,18-Sep-18,Consultancy,Digital Services and Technology,Armakuni Ltd,103612,"37,080.00", Statistical Services,SME,Programme
UK Statistics Authority,Office for National Statistics,18-Sep-18,Contractors Travel and Subsistence,Digital Services and Technology,Armakuni Ltd,103612,"2,872.80", Statistical Services,SME,Programme
UK Statistics Authority,Office for National Statistics,18-Sep-18,ICT Outsourcing & Maintenance/Support,Digital Services and Technology,Armakuni Ltd,103612,"37,680.00", Statistical Services,SME,Programme
UK Statistics Authority,Office for National Statistics,18-Sep-18,IT Contractual Services,Digital Services and Technology,Armakuni Ltd,103612,"4,231.92", Statistical Services,SME,Programme
UK Statistics Authority,Office for National Statistics,18-Sep-18,Electricity,People and Business Services,EDF Energy,30001032,"28,091.51", Electricity Charges Titchfield,Large,Programme
UK Statistics Authority,Office for National Statistics,19-Sep-18,IT Contractual Services,Digital Services and Technology,E Synergy Solutions,103905,"14,520.00", Information Management Services ,SME,Programme
UK Statistics Authority,Office for National Statistics,19-Sep-18,IT Contractual Services,Digital Services and Technology,E Synergy Solutions,103905,"14,010.00", Information Management Services ,SME,Programme
UK Statistics Authority,Office for National Statistics,19-Sep-18,Travel and Subsistence,"Finance, Planning and Performance",Corporate Travel Management ,103912,"53,837.29", Travel and Accommodation Booking Service ,SME,Programme
UK Statistics Authority,Office for National Statistics,19-Sep-18,Telecommunications,Digital Services and Technology,CenturyLink Communications UK Ltd,103916,"40,993.48", Information Management Services,Large,Programme
UK Statistics Authority,Office for National Statistics,20-Sep-18,Public Sector Procurement,Public Policy Analysis,Bloom Procurement Services Ltd,103931,"27,000.00", Information Management Services,Large,Programme
UK Statistics Authority,Office for National Statistics,20-Sep-18,Consultancy,"Public, Population and Policy  - Operations",Deloitte,103944,"59,971.20", Information Management Services,Large,Programme
UK Statistics Authority,Office for National Statistics,20-Sep-18,IT Contractual Services,Digital Services and Technology,QA Ltd,103946,"276,870.00", Information Management Services,Large,Programme
UK Statistics Authority,Office for National Statistics,20-Sep-18,Consultancy,"Public, Population and Policy  - Operations",Ernst & Young Llp,103947,"65,118.60", Census Information Management Services,Large,Programme
UK Statistics Authority,Office for National Statistics,21-Sep-18,Telecommunications,Digital Services and Technology,BT Global Services,104237,"22,632.00", Information Management Services,Large,Programme
UK Statistics Authority,Office for National Statistics,21-Sep-18,Telecommunications,"Public, Population and Policy  - Operations",BT Global Services,104237,"8,389.37", Information Management Services,Large,Programme
UK Statistics Authority,UK Statistics Authority,21-Sep-18,Rent,UK Statistics Authority,Scotland Office,104241,"37,991.83", Office Space Rent,Large,Programme
UK Statistics Authority,Office for National Statistics,24-Sep-18,Contractors,"Methods, Data and Research",E Synergy Solutions,104488,"10,536.00", Information Management Services ,SME,Programme
UK Statistics Authority,Office for National Statistics,24-Sep-18,IT Contractual Services,Digital Services and Technology,E Synergy Solutions,104488,417.3, Information Management Services ,SME,Programme
UK Statistics Authority,Office for National Statistics,24-Sep-18,IT Contractual Services,Digital Services and Technology,E Synergy Solutions,104488,"22,812.00", Information Management Services ,SME,Programme
UK Statistics Authority,Office for National Statistics,24-Sep-18,Contractors,Policy and Communication,Hays,104491,"16,200.00", Information Management Services,Large,Programme
UK Statistics Authority,Office for National Statistics,24-Sep-18,Short-Term Contract and Agency Staff,People and Business Services,Hays,104491,"12,139.25", Information Management Services,Large,Programme
UK Statistics Authority,Office for National Statistics,24-Sep-18,Contractors,"Methods, Data and Research",Malikshaw Interim & Executive,104505,"28,526.26", Information Management Services,SME,Programme
UK Statistics Authority,Office for National Statistics,25-Sep-18,Newport Vouchers,"Public, Population and Policy  - Operations",NatCen Social Research,104509,"13,658.04"," Post Office Vouchers, Survey Incentives",Large,Programme
UK Statistics Authority,Office for National Statistics,25-Sep-18,Surveys,"Public, Population and Policy  - Operations",NatCen Social Research,104509,"240,315.43"," Post Office Vouchers, Survey Incentives",Large,Programme
UK Statistics Authority,Office for National Statistics,26-Sep-18,ICT Software,"Finance, Planning and Performance",SCC,104851,"154,286.89", Information Management Services,Large,Programme
UK Statistics Authority,Office for National Statistics,26-Sep-18,Telecommunications,Digital Services and Technology,BT Global Services,104854,"28,134.13", Information Management Services,Large,Programme
UK Statistics Authority,Office for National Statistics,26-Sep-18,Travel and Subsistence,"Finance, Planning and Performance",Corporate Travel Management ,104858,"68,228.95", Travel and Accommodation Booking Service ,SME,Programme
UK Statistics Authority,Office for National Statistics,26-Sep-18,,National Accounts and Economic Statistics,LA International,104890,"19,992.16", Information Management Services,SME,Programme
UK Statistics Authority,Office for National Statistics,26-Sep-18,,People and Business Services,LA International,104890,"7,031.98", Information Management Services,SME,Programme
UK Statistics Authority,Office for National Statistics,26-Sep-18,IT Contractual Services,Digital Services and Technology,QA Ltd,104892,"192,408.00", Information Management Services,Large,Programme
UK Statistics Authority,Office for National Statistics,26-Sep-18,Rent,People and Business Services,Eaton Aerospace Limited,104893,"26,599.20", Car Park Rent Titchfield,Large,Programme
UK Statistics Authority,Office for National Statistics,26-Sep-18,Contractors,Digital Services and Technology,Parity Resources Limited,104895,"29,932.20", Information Management Services,Large,Programme
UK Statistics Authority,Office for National Statistics,26-Sep-18,ICT Outsourcing & Maintenance/Support,Digital Services and Technology,Parity Resources Limited,104895,"20,095.48", Information Management Services,Large,Programme
UK Statistics Authority,Office for National Statistics,26-Sep-18,Short-Term Contract and Agency Staff,"Public, Population and Policy  - Transformation",Parity Resources Limited,104895,493.51, Information Management Services,Large,Programme
UK Statistics Authority,Office for National Statistics,26-Sep-18,Software Pool 4 Year,Policy and Communication,Brandwatch,104932,"41,275.20", Educational Services,SME,Programme
UK Statistics Authority,Office for National Statistics,27-Sep-18,Incentive Payments,"Public, Population and Policy  - Operations",Park Retail Ltd,104994,"16,012.77", Social Surveys Incentive Vouchers,Large,Programme
UK Statistics Authority,Office for National Statistics,27-Sep-18,Incentive Payments,"Public, Population and Policy  - Operations",Park Retail Ltd,104994,"57,017.22", Social Surveys Incentive Vouchers,Large,Programme
UK Statistics Authority,Office for National Statistics,27-Sep-18,Incentive Payments,"Public, Population and Policy  - Operations",Park Retail Ltd,104994,"5,036.97", Social Surveys Incentive Vouchers,Large,Programme
UK Statistics Authority,Office for National Statistics,27-Sep-18,Incentive Payments,"Public, Population and Policy  - Operations",Park Retail Ltd,104994,"7,942.07", Social Surveys Incentive Vouchers,Large,Programme
UK Statistics Authority,Office for National Statistics,27-Sep-18,IT Contractual Services,Digital Services and Technology,QA Ltd,30001047,"327,192.00", Information Management Services,Large,Programme
UK Statistics Authority,Office for National Statistics,27-Sep-18,Electricity,People and Business Services,EDF Energy,30001048,"27,068.35", Electricity Charges Newport,Large,Programme
UK Statistics Authority,Office for National Statistics,27-Sep-18,Business Rates,People and Business Services,Westminster City Council,30001049,"338,099.03", Drummond Gate Business Rates,Large,Programme
UK Statistics Authority,Office for National Statistics,28-Sep-18,Rent,People and Business Services,James Andrew RSW Ltd,30001052,"202,860.00", Drummond Gate Rent,SME,Programme
UK Statistics Authority,Office for National Statistics,28-Sep-18,ICT Outsourcing & Maintenance/Support,"Public, Population and Policy  - Operations",Totalmobile Ltd,30001054,"143,186.40", Field Management Licenses,SME,Programme
